bitfinex/quotes_SOLUSD_20260114
["timestamp","ask_amount","ask_price","bid_price","bid_amount"]
[1768409708847,7.49023975,147.24,147.2,2.47634834]
[1768409709230,0.69850168,147.23,147.19,2.47634834]
[1768409709426,3.17485002,147.23,147.18,0.72314978]
[1768409709632,0.69850168,147.23,147.18,3.19949812]
[1768409709939,3.17485002,147.23,147.18,0.72314978]
[1768409710144,0.69850168,147.23,147.18,9.99373602]
[1768409710329,0.69850168,147.23,147.19,2.47634834]
[1768409710520,0.69850168,147.23,147.19,3.19949812]
[1768409710723,6.79173807,147.24,147.2,3.19949812]
[1768409710927,0.69850168,147.27,147.23,2.47634834]
[1768409711144,7.48932853,147.26,147.22,3.19949812]
[1768409711460,7.48932853,147.26,147.21,2.47634834]
[1768409711657,5.73109047,147.25,147.2,13.10314978]
[1768409711825,0.69850168,147.22,147.16,7.51814939]
[1768409712022,15.0,147.11,146.97,0.72314978]
[1768409712240,2.47634834,147.05,146.97,0.72314978]
[1768409712427,2.47634834,147.04,146.99,0.72314978]
[1768409712631,1.94269484,147.05,146.93,12.38]
[1768409712822,2.47634834,147.0,146.93,12.38]
[1768409713134,0.09370162,147.01,146.93,19.1858649]
[1768409713344,0.09370162,147.01,146.93,25.53350198]
[1768409713523,6.8018911,147.02,146.94,6.34763708]
[1768409713719,56.72482965,147.04,146.96,6.34763708]
[1768409713720,7.49976589,147.04,146.96,6.34763708]
[1768409714125,7.49976589,147.04,146.93,36.20076995]
[1768409714325,6.34763708,147.02,146.95,6.34763708]
[1768409714548,7.49976589,147.04,146.93,25.53350198]
[1768409714549,6.34763708,147.0,146.93,25.53350198]
[1768409714751,0.09370162,147.03,146.94,0.72314978]
[1768409714926,6.34763708,147.01,146.96,0.72314978]
[1768409715130,0.09370162,147.03,146.96,0.72314978]
[1768409715347,6.34763708,147.0,146.96,0.72314978]
[1768409716052,6.34763708,147.01,146.96,0.72314978]
[1768409716633,0.10555751,146.99,146.93,12.38]
[1768409716839,6.90894021,146.99,146.93,13.10314978]
[1768409717041,6.90894021,146.99,146.94,0.72314978]
[1768409717243,6.34763708,146.98,146.94,0.72314978]
[1768409717644,6.90894021,146.99,146.94,0.72314978]
[1768409717851,23.91689993,146.99,146.94,0.72314978]
[1768409718149,23.91689993,146.99,146.82,34.13962477]
[1768409718150,27.15603143,146.99,146.92,6.80627324]
[1768409718351,13.84846214,147.01,146.95,6.34763708]
[1768409718535,13.84846214,147.01,146.94,6.34763708]
[1768409718740,7.50082506,147.01,146.93,19.20586203]
[1768409718938,0.69850168,147.0,146.94,6.80534932]
[1768409719130,0.69850168,147.0,146.94,13.1529864]
[1768409719330,0.69850168,147.0,146.94,6.80534932]
[1768409719539,7.04613876,146.99,146.93,19.20590834]
[1768409719833,0.69850168,146.99,146.94,6.34763708]
[1768409720041,7.04613876,146.99,146.93,19.20556838]
[1768409720245,0.69850168,146.99,146.93,26.25617258]
[1768409720435,7.04613876,146.99,146.93,13.10296712]
[1768409720850,6.80364675,146.98,146.93,13.10296712]
[1768409721238,0.69021429,146.97,146.93,12.4]
[1768409721556,0.69021429,146.93,146.88,13.15589979]
[1768409722051,0.69021429,146.93,146.88,6.80826271]
[1768409722232,0.69021429,146.93,146.89,6.80779952]
[1768409722434,0.69021429,146.93,146.89,13.1554366]
[1768409722645,0.69021429,146.95,146.9,6.34763708]
[1768409722858,0.69021429,146.97,146.92,6.34763708]
[1768409723035,7.49449896,146.97,146.91,19.20671093]
[1768409723354,0.69021429,146.96,146.91,12.4]
[1768409723656,0.69021429,146.96,146.92,6.34763708]
[1768409723852,0.69021429,146.96,146.91,19.20643651]
[1768409724032,0.69021429,146.96,146.92,6.34763708]
[1768409724238,0.69021429,146.96,146.91,19.20643651]
[1768409724737,0.69021429,146.96,146.91,25.55407359]
[1768409725039,7.49508927,146.96,146.91,12.4]
[1768409725234,7.49508927,146.96,146.91,18.74763708]
[1768409725538,7.49508927,146.96,146.91,12.4]
[1768409725750,13.84272635,146.96,146.91,12.4]
[1768409726261,7.49508927,146.96,146.91,12.4]
[1768409726459,14.41036562,147.0,146.92,0.02573332]
[1768409726658,7.49339818,146.99,146.96,6.34763708]
[1768409726858,7.49339818,146.99,146.97,12.4]
[1768409727156,20.7580027,147.0,146.97,12.4]
[1768409727157,21.21318787,147.0,146.97,12.4]
[1768409727571,14.3846323,147.0,146.98,6.3733704]
[1768409727741,6.80087051,147.04,146.97,19.20406221]
[1768409728061,7.4910848,147.04,146.98,6.34763708]
[1768409728248,13.83872188,147.04,146.98,6.34763708]
[1768409728637,7.4910848,147.04,146.98,6.34763708]
[1768409728835,13.14815175,147.05,146.99,6.34763708]
[1768409729035,13.14815175,147.05,146.97,19.20406221]
[1768409729261,13.14815175,147.05,146.99,6.34763708]
[1768409729477,13.14815175,147.05,146.97,19.20406221]
[1768409729478,7.49072896,147.05,146.97,19.20406221]
[1768409729644,6.34763708,147.04,146.98,6.34763708]
[1768409729844,7.49072896,147.05,146.98,6.34763708]
[1768409730145,6.34763708,147.04,146.98,6.34763708]
[1768409730346,7.49072896,147.05,146.98,6.34763708]
[1768409730546,13.83836604,147.05,146.97,19.20406221]
[1768409730761,6.34763708,147.04,146.97,19.20406221]
[1768409731065,6.34763708,147.04,146.98,6.34763708]
[1768409731452,6.80133306,147.03,146.98,6.34763708]
[1768409731641,6.80100004,147.04,146.98,13.15125212]
[1768409731841,6.80100004,147.04,146.99,6.34763708]
[1768409732135,6.80100004,147.04,146.98,13.15125212]
[1768409732553,13.14863712,147.04,146.98,13.15125212]
[1768409732757,13.14863712,147.04,146.98,6.80361504]
[1768409733160,7.03785137,147.03,146.97,12.4]
[1768409733363,6.34763708,147.02,146.97,12.4]
[1768409733752,7.03785137,147.03,146.97,25.55162696]
[1768409734145,6.80100004,147.04,146.98,13.15094244]
[1768409734536,6.80100004,147.04,146.99,6.34763708]
[1768409734943,7.03785137,147.07,147.01,6.34763708]
[1768409735166,13.8373346,147.07,147.02,12.4]
[1768409735378,6.79915705,147.08,147.02,19.20133555]
[1768409735559,13.14679413,147.08,147.02,25.54897263]
[1768409735756,7.48886741,147.09,147.03,6.34763708]
[1768409736269,13.83650449,147.09,147.03,6.34763708]
[1768409736458,7.48886741,147.09,147.03,6.34763708]
[1768409736760,7.48886741,147.09,147.04,6.34763708]
[1768409736947,6.79840149,147.1,147.05,6.34763708]
[1768409737154,7.48788068,147.11,147.06,12.4]
[1768409737354,0.69021429,147.1,147.06,12.4]
[1768409738566,7.48861824,147.1,147.06,12.4]
[1768409739353,6.79840395,147.1,147.06,12.4]
[1768409739750,7.48800864,147.11,147.06,25.54757999]
[1768409739953,7.48800864,147.11,147.06,18.68763714]
[1768409740770,7.48800864,147.11,147.06,18.62763717]
[1768409741172,7.48800864,147.11,147.07,6.34763708]
[1768409741369,6.79779435,147.11,147.07,6.34763708]
[1768409741679,6.79779435,147.11,147.08,6.34763708]
[1768409742460,6.79779435,147.11,147.09,12.4]
[1768409742770,6.79717237,147.12,147.09,12.4]
[1768409743165,0.69021429,147.11,147.01,17.00458113]
[1768409743364,0.69021429,147.1,147.05,6.34763708]
[1768409743565,0.69021429,147.1,147.06,12.4]
[1768409743771,0.69021429,147.1,147.06,18.74763708]
[1768409744481,0.69021429,147.1,147.06,12.4]
[1768409744875,7.48859766,147.1,147.06,18.74763708]
[1768409745063,7.48859766,147.1,147.06,12.4]
[1768409745269,7.48859766,147.1,147.07,6.34763708]
[1768409745469,7.48859766,147.1,147.06,12.4]
[1768409745674,7.48859766,147.1,147.06,18.74763708]
[1768409745982,7.48859766,147.1,147.04,6.80075741]
[1768409745983,0.69021429,147.08,147.04,12.4]
[1768409746372,0.69021429,147.07,147.04,12.4]
[1768409746681,0.69021429,147.05,147.0,6.34763708]
[1768409746876,6.80087051,147.04,147.01,12.4]
[1768409747364,6.80012265,147.06,147.02,6.34763708]
[1768409747559,7.48986382,147.07,147.03,6.34763708]
[1768409747766,7.48986382,147.07,147.04,12.4]
[1768409749761,0.69021429,147.07,147.04,18.74763708]
[1768409750159,7.48969902,147.07,147.04,12.4]
[1768409750575,0.66421321,147.06,147.04,12.4]
[1768409751760,6.79948473,147.07,147.04,12.4]
[1768409751965,7.46335965,147.08,147.04,12.4]
[1768409752377,0.66421321,147.1,147.04,25.54821244]
[1768409752772,7.46292367,147.09,147.04,18.74763708]
[1768409753169,7.46292367,147.09,147.04,25.54842671]
[1768409753484,0.66421321,147.08,147.04,12.4]
[1768409753889,6.79948323,147.07,147.04,12.4]
[1768409754064,7.46369644,147.07,147.04,12.4]
[1768409754488,0.66421321,147.06,147.04,12.4]
[1768409755678,0.66421321,147.06,147.02,12.4]
[1768409755875,6.80040802,147.05,147.02,12.4]
[1768409756076,7.46424184,147.06,147.02,12.4]
[1768409756991,0.66421321,147.05,147.02,12.4]
[1768409757296,0.66421321,147.05,146.99,12.4]
[1768409757477,0.66421321,147.04,146.99,6.803138]
[1768409757869,0.66421321,147.04,146.99,13.15077508]
[1768409758071,0.66421321,147.04,146.99,6.803138]
[1768409758271,0.66421321,147.04,146.99,13.15077508]
[1768409758473,7.46515552,147.04,146.99,13.15077508]
[1768409758672,0.66421321,147.03,146.99,12.4]
[1768409758869,0.66421321,147.02,146.99,12.4]
[1768409759176,0.66421321,147.0,146.93,17.01427348]
[1768409759377,0.66421321,146.99,146.94,10.31347643]
[1768409759698,0.66421321,146.99,146.96,6.80457084]
[1768409759897,0.66421321,146.99,146.95,6.80488032]
[1768409760208,0.66421321,146.98,146.93,12.4]
[1768409760410,10.97768964,146.96,146.91,6.80660459]
[1768409760706,0.66421321,146.96,146.92,17.11973161]
[1768409760875,10.31347643,146.98,146.92,17.11973161]
[1768409760876,0.66421321,146.98,146.94,6.80547234]
[1768409761075,0.66421321,146.98,146.93,6.80589438]
[1768409761306,10.97768964,146.96,146.92,19.20623491]
[1768409761515,0.66421321,146.96,146.92,12.4]
[1768409761731,7.46754007,146.99,146.93,10.31347643]
[1768409761923,7.46754007,146.99,146.94,6.8054102]
[1768409762794,7.46754007,146.99,146.94,10.31347643]
[1768409763020,7.46754007,146.99,146.93,17.11927298]
[1768409763221,0.66421321,147.01,146.96,10.31347643]
[1768409763396,10.97768964,147.01,146.96,12.4]
[1768409763596,0.66421321,147.01,146.96,12.4]
[1768409764002,7.46650821,147.01,146.96,12.4]
[1768409764301,7.46650821,147.01,146.96,29.51777827]
[1768409764618,0.66421321,147.01,146.96,19.20430184]
[1768409764820,0.66421321,147.01,146.96,29.51777827]
[1768409765113,0.66421321,147.01,146.96,46.52920995]
[1768409765340,0.66421321,147.01,146.97,10.31347643]
[1768409765499,0.66421321,147.01,146.96,46.52920995]
[1768409765703,17.78004502,147.01,146.96,19.20430184]
[1768409765906,7.46656859,147.01,146.96,19.20430184]
[1768409766325,0.66421321,146.96,146.82,54.40378575]
[1768409766633,0.66421321,146.96,146.92,6.80608999]
[1768409766796,0.66421321,146.98,146.92,22.71347643]
[1768409766999,0.66421321,146.97,146.92,29.51979774]
[1768409767415,10.97768964,146.97,146.92,12.4]
[1768409767722,10.97768964,146.97,146.92,19.20641023]
[1768409767906,0.66421321,146.99,146.93,17.11904213]
[1768409768110,0.66421321,147.03,146.96,10.31347643]
[1768409768423,0.66421321,147.01,146.96,12.4]
[1768409768609,10.97768964,147.01,146.96,12.4]
[1768409769016,0.66421321,147.01,146.96,12.4]
[1768409769235,0.66421321,147.0,146.96,12.4]
[1768409770021,7.46600888,147.02,146.96,29.5180488]
[1768409770225,0.66421321,147.02,146.96,29.5180488]
[1768409770602,0.66421321,147.02,146.96,19.20457237]
[1768409771117,7.46614769,147.02,146.96,29.5180488]
[1768409771417,0.66421321,146.98,146.91,17.01650274]
[1768409771622,0.66421321,146.96,146.92,6.80627906]
[1768409771816,0.66421321,146.96,146.91,29.52005749]
[1768409772019,0.66421321,146.96,146.92,17.11949719]
[1768409772220,0.66421321,146.96,146.91,19.20675074]
[1768409772406,7.46883879,146.96,146.91,29.52022717]
[1768409772612,7.46883879,146.96,146.91,19.20675074]
[1768409772812,7.46883879,146.96,146.91,29.52022717]
[1768409773002,0.66421321,146.96,146.92,10.31347643]
[1768409773526,0.66421321,146.96,146.91,29.52022717]
[1768409774025,10.97768964,146.94,146.91,12.4]
[1768409774327,7.46976906,146.94,146.91,12.4]
[1768409774525,10.97768964,146.93,146.84,0.1]
[1768409774826,0.66421321,146.93,146.88,10.31347643]
[1768409775021,0.66421321,146.93,146.89,10.31347643]
[1768409775224,0.66421321,146.97,146.92,10.31347643]
[1768409775416,0.66421321,146.97,146.93,10.31347643]
[1768409775725,0.66421321,146.97,146.93,12.4]
[1768409776324,6.80416219,146.97,146.93,12.4]
[1768409776522,0.66421321,146.96,146.93,12.4]
[1768409777421,0.66421321,147.03,146.93,19.20580876]
[1768409777628,0.66421321,147.01,146.97,10.31347643]
[1768409777812,0.66421321,147.01,146.98,12.4]
[1768409778333,0.66421321,147.02,146.98,19.20346465]
[1768409778630,0.66421321,147.0,146.98,12.4]
[1768409779001,0.66421321,147.0,146.95,6.80465436]
[1768409779205,0.66421321,147.0,146.96,12.4]
[1768409779407,0.66421321,146.96,146.87,6.80874242]
[1768409779607,0.66421321,146.96,146.9,12.4]
[1768409780022,0.66421321,146.96,146.91,10.31347643]
[1768409780201,0.66421321,146.96,146.9,12.4]
[1768409780406,7.46883065,146.96,146.91,17.11993743]
[1768409780603,0.66421321,146.96,146.92,10.31347643]
[1768409780807,0.71960873,146.97,146.91,6.806461]
[1768409781003,0.71960873,146.97,146.92,10.31347643]
[1768409781627,0.71960873,146.97,146.91,6.806461]
[1768409781826,0.71960873,146.97,146.92,10.31347643]
[1768409782022,0.71960873,146.97,146.94,10.31347643]
[1768409782229,0.71960873,146.97,146.94,12.4]
[1768409784135,7.52390981,146.97,146.94,12.4]
[1768409784633,0.71960873,146.96,146.86,17.02189544]
[1768409784836,0.71960873,146.92,146.86,12.42]
[1768409785012,0.71960873,146.92,146.88,10.31347643]
[1768409785218,0.71960873,146.94,146.86,12.42]
[1768409785432,0.71960873,146.94,146.89,10.31347643]
[1768409785741,0.71960873,146.94,146.9,22.73347643]
[1768409785911,0.71960873,146.96,146.9,12.42]
[1768409786118,0.71960873,146.96,146.91,10.31347643]
[1768409786939,0.71960873,146.95,146.91,10.31347643]
[1768409787314,0.71960873,146.95,146.9,19.22697511]
[1768409787638,0.71960873,146.95,146.91,17.12034157]
[1768409788139,0.71960873,146.95,146.91,10.31347643]
[1768409788334,0.71960873,146.95,146.91,17.12005097]
[1768409788535,0.71960873,146.97,146.92,10.31347643]
[1768409788733,0.71960873,146.97,146.93,10.31347643]
[1768409789031,0.71960873,146.97,146.93,22.73347643]
[1768409789414,0.71960873,146.99,146.95,10.31347643]
[1768409789622,0.71960873,146.98,146.91,23.82379596]
[1768409789827,0.71960873,146.98,146.94,12.42]
[1768409790534,0.71960873,146.94,146.88,0.67062344]
[1768409790739,0.71960873,146.94,146.87,12.42]
[1768409790740,0.71960873,146.96,146.93,10.31347643]
[1768409790937,0.71960873,146.96,146.9,7.47794617]
[1768409790938,0.71960873,146.96,146.92,10.31347643]
[1768409791138,7.52421101,146.96,146.91,29.54011878]
[1768409791449,7.52418159,146.96,146.92,10.31347643]
[1768409791737,0.71960873,146.92,146.88,10.31347643]
[1768409791924,10.31347643,146.94,146.88,22.73347643]
[1768409792122,0.71960873,146.94,146.88,13.09062344]
[1768409792326,0.71960873,146.94,146.9,10.31347643]
[1768409792635,0.71960873,146.94,146.89,17.12096635]
[1768409793142,7.52528009,146.94,146.89,17.12096635]
[1768409793342,7.52528009,146.94,146.89,6.80748992]
[1768409793718,7.52528009,146.94,146.89,17.12096635]
[1768409793920,0.71960873,146.92,146.84,0.1]
[1768409794134,0.71960873,146.9,146.84,0.1]
[1768409794322,0.71960873,146.89,146.84,6.90982911]
[1768409794742,11.03308516,146.89,146.84,0.1]
[1768409794932,0.71960873,146.89,146.84,6.91008199]
[1768409795321,0.71960873,146.88,146.84,12.42]
[1768409795739,0.71960873,146.88,146.84,29.54349554]
[1768409796645,0.71960873,146.88,146.84,12.42]
[1768409796825,0.71960873,146.87,146.81,6.81135633]
[1768409797020,0.71960873,146.86,146.82,19.23095452]
[1768409797221,0.71960873,146.88,146.83,10.31347643]
[1768409797421,0.71960873,146.88,146.84,10.31347643]
[1768409798044,11.03308516,146.87,146.82,12.42]
[1768409798249,0.71960873,146.85,146.8,12.42]
[1768409798542,0.71960873,146.84,146.8,22.73347643]
[1768409798735,0.71960873,146.84,146.8,29.54535789]
[1768409799142,0.71960873,146.84,146.81,10.31347643]
[1768409799345,7.52926395,146.86,146.81,6.81150328]
[1768409799747,7.52926395,146.86,146.81,17.12497971]
[1768409800338,17.84274038,146.86,146.8,19.90243805]
[1768409800637,0.71960873,146.84,146.8,12.42]
[1768409801160,0.71960873,146.84,146.78,6.81287932]
[1768409801161,0.71960873,146.83,146.78,6.81287932]
[1768409801450,7.53029698,146.83,146.78,17.12635575]
[1768409802030,0.71960873,146.83,146.78,17.79697919]
[1768409802249,0.71960873,146.84,146.78,6.81287932]
[1768409802439,0.71960873,146.84,146.8,10.31347643]
[1768409802638,0.71960873,146.84,146.78,6.81287932]
[1768409802849,0.71960873,146.84,146.8,10.31347643]
[1768409803360,7.52975456,146.84,146.78,24.51579598]
[1768409803543,7.52975456,146.84,146.79,10.31347643]
[1768409803745,7.52975456,146.84,146.8,10.31347643]
[1768409803746,0.71960873,146.84,146.8,10.31347643]
[1768409804841,0.71960873,146.84,146.79,0.67062344]
[1768409805341,0.71960873,146.84,146.8,10.31347643]
[1768409805536,0.71960873,146.8,146.77,6.91317622]
[1768409805737,0.71960873,146.82,146.77,10.41347643]
[1768409805938,0.71960873,146.82,146.79,10.31347643]
[1768409806143,7.53000304,146.84,146.79,10.31347643]
[1768409806354,0.71960873,146.83,146.78,10.31347643]
[1768409806539,0.71960873,146.83,146.79,10.31347643]
[1768409806742,17.1232388,146.85,146.8,17.12542977]
[1768409806743,7.5293711,146.85,146.8,17.12542977]
[1768409806953,0.71960873,146.84,146.8,17.12542977]
[1768409807134,0.71960873,146.87,146.81,10.98409987]
[1768409807343,0.71960873,146.87,146.84,10.31347643]
[1768409807767,0.71960873,146.87,146.82,7.4816846]
[1768409807961,0.71960873,146.87,146.83,10.31347643]
[1768409808141,0.71960873,146.87,146.84,10.31347643]
[1768409808564,4.99121399,146.86,146.84,1.80500777]
[1768409808761,4.99121399,146.85,146.84,1.80500777]
[1768409808942,4.99121399,146.85,146.82,19.9016846]
[1768409809142,4.98888766,146.84,146.83,10.31347643]
[1768409809838,7.52843583,146.87,146.82,19.90156113]
[1768409810039,0.71960873,146.92,146.86,10.31347643]
[1768409810344,0.71960873,146.91,146.87,10.31347643]
[1768409810551,0.71960873,146.91,146.85,0.67062344]
[1768409810858,0.71960873,146.91,146.88,10.31347643]
[1768409811258,0.66122658,146.93,146.89,10.31347643]
[1768409811762,0.66122658,146.93,146.86,0.6621926]
[1768409811944,17.78072469,146.93,146.87,17.78410146]
[1768409812259,7.46724826,146.93,146.88,10.31347643]
[1768409812435,0.66122658,146.93,146.89,6.80778119]
[1768409812638,0.66122658,146.93,146.89,17.12125762]
[1768409813455,7.46723634,146.93,146.88,17.12174328]
[1768409815165,0.66122658,146.93,146.89,10.31347643]
[1768409815661,7.46729564,146.93,146.89,10.31347643]
[1768409815859,0.66122658,146.91,146.86,6.80920083]
[1768409816165,0.66122658,146.91,146.86,17.12267726]
[1768409816370,0.66122658,146.9,146.85,6.80956164]
[1768409816669,0.66122658,146.89,146.85,17.12303807]
[1768409817172,0.66122658,146.91,146.88,10.31347643]
[1768409817371,7.46729564,146.93,146.89,10.31347643]
[1768409817543,0.66122658,146.93,146.9,10.31347643]
[1768409817743,0.66122658,146.95,146.89,10.31347643]
[1768409817938,0.66122658,146.94,146.89,10.31347643]
[1768409818745,0.66122658,146.94,146.9,6.80735194]
[1768409819666,0.66122658,146.95,146.91,6.35058103]
[1768409819849,0.66122658,146.95,146.9,13.15793297]
[1768409820043,7.46548811,146.97,146.91,6.35058103]
[1768409820248,7.46548811,146.97,146.92,6.35058103]
[1768409820249,0.66122658,146.97,146.92,6.35058103]
[1768409820450,0.66122658,146.99,146.94,7.01277363]
[1768409820845,0.66122658,146.99,146.95,6.80503572]
[1768409821042,7.46355029,147.01,146.95,13.81780935]
[1768409821254,13.81413132,147.01,146.95,13.81780935]
[1768409821472,0.66122658,147.01,146.95,24.47981763]
[1768409821768,0.66122658,147.01,146.96,7.01277363]
[1768409821968,5.00244049,147.0,146.96,7.01277363]
[1768409822179,5.00244049,146.99,146.96,0.6621926]
[1768409822365,0.66122658,147.01,146.96,0.6621926]
[1768409822548,5.00086118,147.0,146.96,7.01277363]
[1768409822749,5.00086118,146.99,146.96,7.01277363]
[1768409822980,0.66122658,147.01,146.97,6.80410968]
[1768409823182,4.99999143,147.0,146.97,6.80410968]
[1768409823382,4.99999143,146.99,146.97,6.80410968]
[1768409823565,0.66122658,147.01,146.97,6.80410968]
[1768409823875,5.00036264,147.0,146.97,6.80410968]
[1768409824062,5.00036264,146.99,146.97,6.80410968]
[1768409824250,0.66122658,147.01,146.97,6.80410968]
[1768409824577,4.9987587,147.0,146.97,6.80410968]
[1768409824747,0.59312658,147.04,146.99,0.6621926]
[1768409825060,0.59312658,147.04,146.98,6.80351192]
[1768409825261,0.59312658,147.04,146.98,13.15409295]
[1768409825469,6.35058103,147.04,146.98,13.81628555]
[1768409825849,6.35058103,147.05,146.98,13.81628555]
[1768409826155,8.22762603,147.04,146.94,6.80536037]
[1768409826350,6.35058103,147.0,146.95,0.6621926]
[1768409826565,12.42,147.03,146.96,0.6621926]
[1768409826757,7.01180761,147.02,146.96,7.01277363]
[1768409827071,0.66122658,147.02,146.98,6.8035498]
[1768409827450,0.66122658,147.02,146.97,7.46615327]
[1768409827650,0.66122658,147.02,146.97,13.1545417]
[1768409827859,7.46348492,147.01,146.96,13.15506005]
[1768409828277,0.66122658,147.01,146.97,6.80396274]
[1768409828578,0.66122658,147.01,146.96,13.81717738]
[1768409829490,0.66122658,147.01,146.96,7.46659635]
[1768409829788,0.66122658,147.01,146.96,13.81717738]
[1768409830487,0.66122658,147.01,146.97,13.15467391]
[1768409830860,0.66122658,147.03,146.98,7.01277363]
[1768409831669,0.15356905,146.98,146.82,20.35]
[1768409831868,0.66122658,146.96,146.9,0.6621926]
[1768409832262,0.66122658,146.98,146.92,7.01277363]
[1768409832462,6.80410968,146.97,146.93,6.35058103]
[1768409832784,7.46494084,146.98,146.93,6.35058103]
[1768409833864,0.66122658,146.98,146.93,6.35058103]
[1768409834368,7.46492579,146.98,146.92,7.01277363]
[1768409834770,7.46492579,146.98,146.92,13.81911526]
[1768409834966,7.46492579,146.98,146.93,7.01277363]
[1768409835282,0.66122658,147.0,146.95,6.35058103]
[1768409835478,0.66122658,147.0,146.93,0.6621926]
[1768409835479,0.66122658,147.0,146.94,6.35058103]
[1768409835883,7.46405599,147.0,146.94,7.01277363]
[1768409836398,7.46405599,147.0,146.92,36.24240479]
[1768409836399,6.35058103,147.02,146.95,7.01277363]
[1768409836589,0.66122658,147.01,146.95,7.01277363]
[1768409836778,4.99667691,147.0,146.95,7.01277363]
[1768409836977,4.99667691,146.99,146.96,7.46676527]
[1768409837175,0.66122658,147.01,146.96,7.46676527]
[1768409837487,0.66122658,147.01,146.96,13.8173463]
[1768409837804,7.01180761,147.03,146.96,13.8173463]
[1768409837984,4.99428739,147.02,146.96,13.8173463]
[1768409838187,4.99428739,147.01,146.96,26.2373463]
[1768409838501,13.81323338,147.03,146.97,6.35058103]
[1768409838793,5.65309341,147.02,146.97,0.6621926]
[1768409838973,6.80142577,147.03,146.97,0.6621926]
[1768409838974,6.35058103,147.01,146.97,7.46609035]
[1768409839174,7.46265235,147.03,146.97,7.46609035]
[1768409839175,0.66122658,147.03,146.97,7.46609035]
[1768409839475,6.35058103,147.02,146.97,7.46609035]
[1768409839865,7.46173527,147.05,146.98,0.6621926]
[1768409840069,4.99140493,147.04,147.0,0.6621926]
[1768409840309,7.01180761,147.05,147.0,13.0821926]
[1768409840473,6.35058103,147.05,147.0,13.0821926]
[1768409840807,7.01769933,147.05,147.0,13.0821926]
[1768409841009,7.01769933,147.05,147.0,19.88463274]
[1768409841385,0.6671183,147.05,147.0,19.88463274]
[1768409841699,6.35058103,147.06,147.0,19.88463274]
[1768409841877,11.33823007,147.05,147.0,19.88463274]
[1768409842083,6.35058103,147.05,147.0,19.88463274]
[1768409842284,6.35058103,147.06,147.01,0.69284332]
[1768409842606,6.35058103,147.05,147.01,0.69284332]
[1768409842890,7.01769933,147.06,147.01,7.4947938]
[1768409843273,13.81766873,147.06,147.01,7.4947938]
[1768409843478,7.4670877,147.06,147.01,7.4947938]
[1768409843780,6.35058103,147.05,147.01,0.69284332]
[1768409844301,6.35058103,147.03,147.0,12.4]
[1768409844502,6.35058103,147.03,146.99,0.69284332]
[1768409844680,6.35058103,147.02,146.98,19.20352463]
[1768409844873,6.35058103,147.01,146.98,12.4]
[1768409845380,6.35058103,147.0,146.98,12.4]
[1768409845776,6.80229978,147.01,146.98,12.4]
[1768409845992,6.35058103,147.0,146.98,12.4]
[1768409846672,6.35058103,147.01,146.98,12.4]
[1768409846873,0.6671183,146.99,146.93,5.34408856]
[1768409847070,0.6671183,146.99,146.88,61.5]
[1768409847071,6.35058103,146.94,146.9,0.69284332]
[1768409847294,0.6671183,146.96,146.9,7.49977792]
[1768409847594,0.6671183,146.96,146.91,0.69284332]
[1768409847898,6.35058103,146.95,146.91,0.69284332]
[1768409848099,6.35058103,146.97,146.91,0.69284332]
[1768409848278,6.80272108,147.0,146.92,13.09284332]
[1768409848279,6.35058103,146.96,146.92,13.09284332]
[1768409849087,6.35058103,146.96,146.92,19.89913727]
[1768409849888,6.35058103,146.95,146.92,13.09284332]
[1768409850398,6.35058103,146.94,146.9,12.4]
[1768409850592,6.35058103,146.94,146.9,19.89988537]
[1768409850811,6.35058103,146.95,146.91,7.49967749]
[1768409851100,6.80396931,146.98,146.92,0.69284332]
[1768409851403,11.3463493,146.97,146.92,0.69284332]
[1768409851606,6.35058103,146.97,146.92,0.69284332]
[1768409852404,5.0059641,146.96,146.92,0.69284332]
[1768409852607,7.01769933,146.98,146.92,0.69284332]
[1768409852905,5.00539851,146.97,146.92,0.69284332]
[1768409853202,5.00539851,146.96,146.93,7.49880534]
[1768409853405,7.01769933,146.98,146.93,7.49880534]
[1768409853574,5.00934093,146.97,146.94,0.69284332]
[1768409853778,5.00934093,146.96,146.94,13.09284332]
[1768409853986,6.35058103,146.98,146.94,13.09284332]
[1768409854184,5.00981517,146.97,146.94,13.09284332]
[1768409854386,7.47034309,146.99,146.94,19.89827125]
[1768409854586,11.36422954,146.98,146.94,19.89827125]
[1768409854779,5.01364851,146.97,146.94,19.89827125]
[1768409855001,6.35058103,146.97,146.94,19.89827125]
[1768409855188,5.01321739,146.96,146.94,19.89827125]
[1768409855484,6.35058103,146.97,146.94,19.89827125]
[1768409855681,0.6671183,147.01,146.95,0.69284332]
[1768409855882,6.35058103,146.99,146.95,0.69284332]
[1768409856282,0.6671183,147.01,146.95,0.69284332]
[1768409856506,6.35058103,147.0,146.95,0.69284332]
[1768409856691,6.35058103,147.0,146.96,6.80457267]
[1768409856894,6.35058103,147.0,146.96,7.49741599]
[1768409857406,7.01769933,147.01,146.96,7.49741599]
[1768409857704,6.35058103,147.0,146.96,7.49741599]